[Event "Kvibergspelen September 2019"]
[Site "Prioritet Serneke Arena, Krutvagen 2, Gothenburg, Sweden"]
[Date "2019.09.28"]
[Round "5.11"]
[White "Muntean, Victor"]
[Black "Storme, Isak"]
[Result "1/2-1/2"]
[TimeControl "15 minutes + 5 seconds per move from move one (Round 1 - 4) / 90 minutes + 30 seconds per move from move one (Round 5 - 8)"]
[BlackTitle "FM"]
[WhiteFideId "1054414"]
[BlackFideId "1728113"]
[WhiteElo "2020"]
[BlackElo "2272"]

1. e4 {[%clk 01:30:58]} {[%emt 00:00:02]} e6 {[%clk 01:30:55]} {[%emt
00:00:05]} 2. d4 {[%clk 01:31:18]} {[%emt 00:00:10]} d5 {[%clk 01:31:21]}
{[%emt 00:00:04]} 3. e5 {[%clk 01:30:56]} {[%emt 00:00:52]} c5 {[%clk
01:31:46]} {[%emt 00:00:05]} 4. c3 {[%clk 01:31:22]} {[%emt 00:00:05]} Nc6
{[%clk 01:32:12]} {[%emt 00:00:04]} 5. Nf3 {[%clk 01:31:43]} {[%emt 00:00:09]}
Bd7 {[%clk 01:32:37]} {[%emt 00:00:05]} 6. a3 {[%clk 01:29:52]} {[%emt
00:02:22]} f6 {[%clk 01:31:43]} {[%emt 00:01:24]} 7. Bf4 {[%clk 01:28:04]}
{[%emt 00:02:18]} Nh6 {[%clk 01:24:32]} {[%emt 00:07:41]} 8. exf6 {[%clk
01:12:00]} {[%emt 00:16:35]} Qxf6 {[%clk 01:19:42]} {[%emt 00:05:19]} 9. Bg5
{[%clk 01:11:48]} {[%emt 00:00:41]} Qf7 {[%clk 01:19:35]} {[%emt 00:00:36]} 10.
dxc5 {[%clk 01:09:50]} {[%emt 00:02:30]} Bxc5 {[%clk 01:19:30]} {[%emt
00:00:35]} 11. Bxh6 {[%clk 01:06:07]} {[%emt 00:04:13]} gxh6 {[%clk 01:19:48]}
{[%emt 00:00:11]} 12. b4 {[%clk 01:06:16]} {[%emt 00:00:22]} Bb6 {[%clk
01:18:53]} {[%emt 00:01:25]} 13. c4 {[%clk 00:58:31]} {[%emt 00:08:15]} dxc4
{[%clk 01:15:16]} {[%emt 00:04:07]} 14. Bxc4 {[%clk 00:58:53]} {[%emt
00:00:08]} Ne5 {[%clk 01:10:40]} {[%emt 00:05:05]} 15. Nbd2 {[%clk 00:57:42]}
{[%emt 00:01:42]} Bc6 {[%clk 01:02:04]} {[%emt 00:09:04]} 16. Qe2 {[%clk
00:56:41]} {[%emt 00:01:32]} Ng6 {[%clk 00:57:47]} {[%emt 00:04:47]} 17. Bxe6
{[%clk 00:43:14]} {[%emt 00:13:57]} Qe7 {[%clk 00:57:26]} {[%emt 00:00:50]} 18.
O-O {[%clk 00:41:15]} {[%emt 00:02:30]} Kf8 {[%clk 00:46:44]} {[%emt 00:11:11]}
19. Rfe1 {[%clk 00:38:25]} {[%emt 00:03:21]} Qf6 {[%clk 00:41:06]} {[%emt
00:06:07]} 20. b5 {[%clk 00:34:29]} {[%emt 00:04:27]} Nf4 {[%clk 00:39:45]}
{[%emt 00:01:51]} 21. Qc4 {[%clk 00:34:09]} {[%emt 00:00:51]} Bxf3 {[%clk
00:28:08]} {[%emt 00:12:07]} 22. Nxf3 {[%clk 00:34:31]} {[%emt 00:00:08]} Re8
{[%clk 00:20:27]} {[%emt 00:08:10]} 23. Bd7 {[%clk 00:29:25]} {[%emt 00:05:37]}
Re2 {[%clk 00:18:42]} {[%emt 00:02:14]} 24. Kh1 {[%clk 00:14:49]} {[%emt
00:15:07]} Bxf2 {[%clk 00:15:10]} {[%emt 00:04:02]} 25. Rf1 {[%clk 00:15:05]}
{[%emt 00:00:14]} Rg8 {[%clk 00:13:54]} {[%emt 00:01:46]} 26. Ra2 {[%clk
00:09:20]} {[%emt 00:06:16]} Rxa2 {[%clk 00:11:07]} {[%emt 00:03:17]} 27. Qxa2
{[%clk 00:09:45]} {[%emt 00:00:05]} Be3 {[%clk 00:05:58]} {[%emt 00:05:39]} 28.
g3 {[%clk 00:07:39]} {[%emt 00:02:36]} Rg7 {[%clk 00:05:04]} {[%emt 00:01:24]}
29. Qb3 {[%clk 00:06:21]} {[%emt 00:01:48]} Rxd7 {[%clk 00:05:04]} {[%emt
00:00:30]} 30. Qxe3 {[%clk 00:06:25]} {[%emt 00:00:25]} Nd5 {[%clk 00:05:02]}
{[%emt 00:00:31]} 31. Qe2 {[%clk 00:05:03]} {[%emt 00:01:53]} Rf7 {[%clk
00:03:35]} {[%emt 00:01:56]} 32. Qd3 {[%clk 00:02:51]} {[%emt 00:02:42]} Qf5
{[%clk 00:03:15]} {[%emt 00:00:49]} 33. Qd4 {[%clk 00:02:19]} {[%emt 00:01:02]}
Kg8 {[%clk 00:02:07]} {[%emt 00:01:38]} 34. Nd2 {[%clk 00:02:05]} {[%emt
00:00:45]} Qe6 {[%clk 00:01:37]} {[%emt 00:00:59]} 35. Rxf7 {[%clk 00:02:26]}
{[%emt 00:00:10]} Kxf7 {[%clk 00:01:53]} {[%emt 00:00:14]} 36. Nf3 {[%clk
00:01:56]} {[%emt 00:01:00]} Qf5 {[%clk 00:02:01]} {[%emt 00:00:21]} 37. Kg2
{[%clk 00:01:44]} {[%emt 00:00:43]} Qc2+ {[%clk 00:01:19]} {[%emt 00:01:11]} 38.
Kh3 {[%clk 00:01:44]} {[%emt 00:00:31]} Qf5+ {[%clk 00:01:17]} {[%emt
00:00:31]} 39. Kg2 {[%clk 00:02:01]} {[%emt 00:00:13]} b6 {[%clk 00:01:06]}
{[%emt 00:00:42]} 40. Ne5+ {[%clk 00:01:57]} {[%emt 00:00:34]} Ke6 {[%clk
00:01:28]} {[%emt 00:00:07]} 41. Nc6 {[%clk 00:02:10]} {[%emt 00:00:17]} Qc2+
{[%clk 00:01:19]} {[%emt 00:00:38]} 42. Kh3 {[%clk 00:02:23]} {[%emt 00:00:17]}
Qf5+ {[%clk 00:01:28]} {[%emt 00:00:21]} 43. Kg2 {[%clk 00:02:47]} {[%emt
00:00:06]} a6 {[%clk 00:01:18]} {[%emt 00:00:41]} 44. a4 {[%clk 00:02:01]}
{[%emt 00:01:17]} axb5 {[%clk 00:01:34]} {[%emt 00:00:14]} 45. axb5 {[%clk
00:02:23]} {[%emt 00:00:08]} h5 {[%clk 00:01:28]} {[%emt 00:00:35]} 46. h4
{[%clk 00:00:58]} {[%emt 00:01:56]} Qc2+ {[%clk 00:00:51]} {[%emt 00:01:07]} 47.
Kh3 {[%clk 00:01:09]} {[%emt 00:00:19]} Qf5+ {[%clk 00:01:12]} {[%emt
00:00:09]} 48. Kg2 {[%clk 00:01:36]} {[%emt 00:00:04]} Kd6 {[%clk 00:01:12]}
{[%emt 00:00:29]} 49. Kh2 {[%clk 00:01:15]} {[%emt 00:00:52]} Qg4 {[%clk
00:00:37]} {[%emt 00:01:04]} 50. Qe5+ {[%clk 00:01:11]} {[%emt 00:00:35]} Kc5
{[%clk 00:01:00]} {[%emt 00:00:06]} 51. Ne7 {[%clk 00:01:03]} {[%emt 00:00:39]}
Qd4 {[%clk 00:00:43]} {[%emt 00:00:46]} 52. Qe2 {[%clk 00:00:42]} {[%emt
00:00:52]} Qe3 {[%clk 00:00:35]} {[%emt 00:00:37]} 53. Qc2+ {[%clk 00:01:03]}
{[%emt 00:00:10]} Nc3 {[%clk 00:00:53]} {[%emt 00:00:11]} 54. Qf5+ {[%clk
00:01:10]} {[%emt 00:00:23]} Kb4 {[%clk 00:01:04]} {[%emt 00:00:16]} 55. Nc6+
{[%clk 00:01:13]} {[%emt 00:00:31]} Ka4 {[%clk 00:00:55]} {[%emt 00:00:38]} 56.
Qxh5 {[%clk 00:00:53]} {[%emt 00:00:51]} Ne2 {[%clk 00:00:46]} {[%emt
00:00:38]} 57. Qg4+ {[%clk 00:00:46]} {[%emt 00:00:37]} Kxb5 {[%clk 00:01:07]}
{[%emt 00:00:08]} 58. Na7+ {[%clk 00:01:10]} {[%emt 00:00:06]} Kc5 {[%clk
00:00:41]} {[%emt 00:00:55]} 59. Qf5+ {[%clk 00:01:10]} {[%emt 00:00:31]} Kc4
{[%clk 00:00:53]} {[%emt 00:00:16]} 60. Qc2+ {[%clk 00:01:26]} {[%emt
00:00:15]} Nc3 {[%clk 00:00:35]} {[%emt 00:00:48]} 61. Qxh7 {[%clk 00:01:30]}
{[%emt 00:00:27]} Qe2+ {[%clk 00:00:51]} {[%emt 00:00:14]} 62. Kh3 {[%clk
00:01:55]} {[%emt 00:00:05]} Qe6+ {[%clk 00:01:06]} {[%emt 00:00:14]} 63. Kh2
{[%clk 00:02:04]} {[%emt 00:00:22]} Qe2+ {[%clk 00:01:25]} {[%emt 00:00:11]} 64.
Kh3 {[%clk 00:02:24]} {[%emt 00:00:09]} Ne4 {[%clk 00:01:17]} {[%emt 00:00:38]}
65. Qc7+ {[%clk 00:02:21]} {[%emt 00:00:34]} Kd3 {[%clk 00:01:22]} {[%emt
00:00:24]} 66. Qd8+ {[%clk 00:00:55]} {[%emt 00:01:57]} Ke3 {[%clk 00:00:34]}
{[%emt 00:01:17]} 67. Qxb6+ {[%clk 00:01:21]} {[%emt 00:00:05]} Kf3 {[%clk
00:00:54]} {[%emt 00:00:07]} 68. Qb3+ {[%clk 00:01:43]} {[%emt 00:00:10]} Kf2
{[%clk 00:01:10]} {[%emt 00:00:12]} 69. Qb6+ {[%clk 00:01:56]} {[%emt
00:00:18]} Kf3 {[%clk 00:00:58]} {[%emt 00:00:41]} 70. Qb3+ {[%clk 00:01:39]}
{[%emt 00:00:48]} Kf2 {[%clk 00:01:21]} {[%emt 00:00:07]} 71. Qb6+ {[%clk
00:01:47]} {[%emt 00:00:23]} 1/2-1/2

[Event "Kvibergspelen September 2019"]
[Site "Prioritet Serneke Arena, Krutvagen 2, Gothenburg, Sweden"]
[Date "2019.09.28"]
[Round "5.12"]
[White "Trost, Edvin"]
[Black "Petersson, Baldur Teodor"]
[Result "0-1"]
[TimeControl "15 minutes + 5 seconds per move from move one (Round 1 - 4) / 90 minutes + 30 seconds per move from move one (Round 5 - 8)"]
[BlackTitle "CM"]
[WhiteFideId "1729519"]
[BlackFideId "2309157"]
[WhiteElo "1982"]
[BlackElo "2238"]

1. e4 {[%clk 01:30:43]} {[%emt 00:00:17]} e6 {[%clk 01:30:27]} {[%emt
00:00:33]} 2. d4 {[%clk 01:30:28]} {[%emt 00:00:45]} d5 {[%clk 01:30:46]}
{[%emt 00:00:11]} 3. Nc3 {[%clk 01:30:06]} {[%emt 00:00:51]} Bb4 {[%clk
01:31:06]} {[%emt 00:00:10]} 4. e5 {[%clk 01:30:30]} {[%emt 00:00:06]} Qd7
{[%clk 01:31:25]} {[%emt 00:00:10]} 5. f4 {[%clk 01:24:18]} {[%emt 00:06:42]}
b6 {[%clk 01:28:00]} {[%emt 00:03:55]} 6. a3 {[%clk 01:18:38]} {[%emt
00:06:10]} Bxc3+ {[%clk 01:27:08]} {[%emt 00:01:20]} 7. bxc3 {[%clk 01:18:41]}
{[%emt 00:00:29]} Ba6 {[%clk 01:27:25]} {[%emt 00:00:12]} 8. Bd3 {[%clk
01:18:41]} {[%emt 00:00:30]} Qa4 {[%clk 01:09:06]} {[%emt 00:18:49]} 9. Nf3
{[%clk 01:12:26]} {[%emt 00:06:46]} Ne7 {[%clk 01:04:37]} {[%emt 00:04:58]} 10.
O-O {[%clk 01:05:17]} {[%emt 00:07:39]} c5 {[%clk 00:35:26]} {[%emt 00:29:41]}
11. dxc5 {[%clk 00:57:40]} {[%emt 00:08:08]} bxc5 {[%clk 00:34:42]} {[%emt
00:01:14]} 12. Be3 {[%clk 00:51:53]} {[%emt 00:06:16]} Nd7 {[%clk 00:30:48]}
{[%emt 00:04:23]} 13. g4 {[%clk 00:14:05]} {[%emt 00:38:19]} g6 {[%clk
00:27:16]} {[%emt 00:04:01]} 14. h3 {[%clk 00:13:03]} {[%emt 00:01:33]} h5
{[%clk 00:25:56]} {[%emt 00:01:49]} 15. Rb1 {[%clk 00:08:22]} {[%emt 00:05:13]}
Rc8 {[%clk 00:25:42]} {[%emt 00:00:43]} 16. Ng5 {[%clk 00:06:59]} {[%emt
00:01:53]} hxg4 {[%clk 00:16:44]} {[%emt 00:09:28]} 17. hxg4 {[%clk 00:06:36]}
{[%emt 00:00:54]} Nb6 {[%clk 00:17:07]} {[%emt 00:00:07]} 18. Kf2 {[%clk
00:05:27]} {[%emt 00:01:40]} d4 {[%clk 00:08:53]} {[%emt 00:08:44]} 19. Bd2
{[%clk 00:05:02]} {[%emt 00:00:55]} Bxd3 {[%clk 00:07:24]} {[%emt 00:01:59]} 20.
cxd3 {[%clk 00:05:15]} {[%emt 00:00:17]} dxc3 {[%clk 00:07:42]} {[%emt
00:00:11]} 21. Qxa4+ {[%clk 00:03:18]} {[%emt 00:02:28]} Nxa4 {[%clk 00:08:10]}
{[%emt 00:00:01]} 22. Be3 {[%clk 00:02:56]} {[%emt 00:00:51]} Rh2+ {[%clk
00:08:01]} {[%emt 00:00:39]} 23. Kg3 {[%clk 00:03:12]} {[%emt 00:00:16]} Rb2
{[%clk 00:08:24]} {[%emt 00:00:06]} 24. Ne4 {[%clk 00:02:44]} {[%emt 00:00:58]}
Rcb8 {[%clk 00:08:29]} {[%emt 00:00:25]} 25. Rbc1 {[%clk 00:02:45]} {[%emt
00:00:29]} Nd5 {[%clk 00:08:33]} {[%emt 00:00:25]} 26. Kf3 {[%clk 00:02:41]}
{[%emt 00:00:35]} Rh2 {[%clk 00:06:33]} {[%emt 00:02:30]} 27. Rh1 {[%clk
00:03:00]} {[%emt 00:00:12]} Rbb2 {[%clk 00:06:45]} {[%emt 00:00:17]} 28. Rxh2
{[%clk 00:00:32]} {[%emt 00:02:58]} Rxh2 {[%clk 00:07:09]} {[%emt 00:00:07]} 29.
Kg3 {[%clk 00:00:33]} {[%emt 00:00:29]} Ra2 {[%clk 00:05:52]} {[%emt 00:01:46]}
30. Nxc5 {[%clk 00:00:32]} {[%emt 00:00:31]} Rxa3 {[%clk 00:05:23]} {[%emt
00:00:59]} 31. Bd4 {[%clk 00:00:32]} {[%emt 00:00:30]} Nxc5 {[%clk 00:04:52]}
{[%emt 00:01:00]} 32. Bxc5 {[%clk 00:01:01]} Ra4 {[%clk 00:05:11]} {[%emt
00:00:10]} 33. d4 {[%clk 00:00:57]} {[%emt 00:00:34]} a5 {[%clk 00:05:03]}
{[%emt 00:00:39]} 34. Kf3 {[%clk 00:01:22]} {[%emt 00:00:05]} Ra2 {[%clk
00:05:17]} {[%emt 00:00:16]} 35. Ke4 {[%clk 00:01:33]} {[%emt 00:00:20]} Rf2
{[%clk 00:05:21]} {[%emt 00:00:25]} 36. f5 {[%clk 00:01:40]} {[%emt 00:00:24]}
gxf5+ {[%emt 00:01:14]} 37. gxf5 Rxf5 {[%clk 00:04:59]} {[%emt 00:00:09]} 38.
Kd3 {[%clk 00:02:23]} {[%emt 00:00:16]} Rf2 {[%clk 00:04:59]} {[%emt 00:00:27]}
39. Kc4 {[%clk 00:02:30]} {[%emt 00:00:25]} Rb2 {[%clk 00:04:44]} {[%emt
00:00:45]} 40. Ba3 {[%clk 00:02:40]} {[%emt 00:00:21]} Rb7 {[%clk 00:04:57]}
{[%emt 00:00:16]} 41. Bc5 {[%clk 00:02:26]} {[%emt 00:00:44]} Kd7 {[%clk
00:04:58]} {[%emt 00:00:29]} 42. Ra1 {[%clk 00:02:30]} {[%emt 00:00:27]} c2
{[%clk 00:05:15]} {[%emt 00:00:13]} 43. Ba3 {[%clk 00:00:31]} {[%emt 00:02:29]}
Rb1 {[%clk 00:05:34]} {[%emt 00:00:10]} 44. Ra2 {[%clk 00:00:58]} {[%emt
00:00:03]} Nb4 {[%clk 00:05:36]} {[%emt 00:00:28]} 45. Kc3 {[%clk 00:00:40]}
{[%emt 00:00:48]} c1=Q+ {[%clk 00:05:46]} {[%emt 00:00:20]} 46. Bxc1 {[%clk
00:00:49]} {[%emt 00:00:21]} Nxa2+ {[%clk 00:06:04]} {[%emt 00:00:13]} 47. Kd3
{[%clk 00:01:08]} {[%emt 00:00:10]} Rxc1 {[%clk 00:06:24]} {[%emt 00:00:10]} 48.
d5 {[%clk 00:01:35]} {[%emt 00:00:04]} Nb4+ {[%clk 00:06:37]} {[%emt 00:00:17]}
49. Ke4 {[%clk 00:02:00]} {[%emt 00:00:05]} exd5+ {[%clk 00:06:52]} {[%emt
00:00:15]} 50. Kf5 {[%clk 00:02:25]} {[%emt 00:00:05]} Rf1+ {[%clk 00:07:17]}
{[%emt 00:00:05]} 51. Kg5 {[%clk 00:02:52]} {[%emt 00:00:03]} Ke6 {[%clk
00:07:39]} {[%emt 00:00:09]} 52. Kh4 {[%clk 00:03:08]} {[%emt 00:00:13]} Rg1
{[%clk 00:07:59]} {[%emt 00:00:10]} 53. Kh3 {[%clk 00:03:32]} {[%emt 00:00:06]}
Kxe5 {[%clk 00:08:20]} {[%emt 00:00:09]} 54. Kh2 {[%clk 00:03:54]} {[%emt
00:00:08]} Rg6 {[%clk 00:08:44]} {[%emt 00:00:04]} 55. Kh3 {[%clk 00:04:20]}
{[%emt 00:00:05]} Kf4 {[%clk 00:09:08]} {[%emt 00:00:07]} 56. Kh2 {[%clk
00:04:48]} {[%emt 00:00:02]} Kf3 {[%clk 00:09:29]} {[%emt 00:00:09]} 57. Kh1
{[%clk 00:05:14]} {[%emt 00:00:04]} Kf2 {[%clk 00:09:53]} 0-1

[Event "Kvibergspelen September 2019"]
[Site "Prioritet Serneke Arena, Krutvagen 2, Gothenburg, Sweden"]
[Date "2019.09.28"]
[Round "5.13"]
[White "Frisk, Ellinor"]
[Black "Harren, Mats"]
[Result "1-0"]
[TimeControl "15 minutes + 5 seconds per move from move one (Round 1 - 4) / 90 minutes + 30 seconds per move from move one (Round 5 - 8)"]
[WhiteTitle "WIM"]
[WhiteFideId "1708481"]
[BlackFideId "1703943"]
[WhiteElo "2227"]
[BlackElo "2113"]

1. Nf3 {[%clk 01:30:57]} {[%emt 00:00:02]} Nf6 {[%clk 01:30:48]} {[%emt
00:00:12]} 2. c4 {[%clk 01:31:23]} {[%emt 00:00:05]} e6 {[%clk 01:31:13]}
{[%emt 00:00:05]} 3. g3 {[%clk 01:31:40]} {[%emt 00:00:13]} a6 {[%clk
01:31:26]} {[%emt 00:00:17]} 4. Bg2 {[%clk 01:30:57]} {[%emt 00:01:12]} b5
{[%clk 01:31:13]} {[%emt 00:00:44]} 5. Nd4 {[%clk 01:21:47]} {[%emt 00:09:41]}
d5 {[%clk 01:14:48]} {[%emt 00:16:54]} 6. cxb5 {[%clk 01:20:35]} {[%emt
00:01:42]} axb5 {[%clk 01:02:08]} {[%emt 00:13:11]} 7. Nxb5 {[%clk 01:20:47]}
{[%emt 00:00:18]} e5 {[%clk 01:01:42]} {[%emt 00:00:55]} 8. O-O {[%clk
01:19:16]} {[%emt 00:02:00]} h5 {[%clk 00:57:09]} {[%emt 00:05:03]} 9. d4
{[%clk 01:11:21]} {[%emt 00:08:25]} c6 {[%clk 00:51:45]} {[%emt 00:05:55]} 10.
dxe5 {[%clk 01:07:00]} {[%emt 00:04:51]} Ng4 {[%clk 00:50:57]} {[%emt
00:01:18]} 11. Nd6+ {[%clk 00:48:55]} {[%emt 00:18:35]} Bxd6 {[%clk 00:50:12]}
{[%emt 00:01:15]} 12. exd6 {[%clk 00:49:24]} {[%emt 00:00:02]} h4 {[%clk
00:48:07]} {[%emt 00:02:35]} 13. Qd4 {[%clk 00:36:14]} {[%emt 00:13:39]} hxg3
{[%clk 00:43:59]} {[%emt 00:04:38]} 14. hxg3 {[%clk 00:29:24]} {[%emt
00:07:20]} Kf8 {[%clk 00:37:16]} {[%emt 00:07:14]} 15. Bf4 {[%clk 00:25:00]}
{[%emt 00:04:54]} Nd7 {[%clk 00:33:17]} {[%emt 00:04:29]} 16. Nc3 {[%clk
00:24:14]} {[%emt 00:01:16]} f6 {[%clk 00:31:42]} {[%emt 00:02:05]} 17. f3
{[%clk 00:18:50]} {[%emt 00:05:53]} Nge5 {[%clk 00:29:46]} {[%emt 00:02:26]} 18.
e4 {[%clk 00:18:39]} {[%emt 00:00:41]} g5 {[%clk 00:27:15]} {[%emt 00:03:01]}
19. Be3 {[%clk 00:18:18]} {[%emt 00:00:51]} Ba6 {[%clk 00:26:26]} {[%emt
00:01:18]} 20. Rfd1 {[%clk 00:15:43]} {[%emt 00:03:05]} Qe8 {[%clk 00:23:55]}
{[%emt 00:03:02]} 21. exd5 {[%clk 00:10:14]} {[%emt 00:05:59]} c5 {[%clk
00:20:48]} {[%emt 00:03:37]} 22. Qe4 {[%clk 00:10:42]} {[%emt 00:00:03]} Qf7
{[%clk 00:20:41]} {[%emt 00:00:36]} 23. Qf5 {[%clk 00:09:53]} {[%emt 00:01:20]}
Re8 {[%clk 00:19:08]} {[%emt 00:02:03]} 24. Ne4 {[%clk 00:04:43]} {[%emt
00:05:40]} Nd3 {[%clk 00:15:47]} {[%emt 00:03:51]} 25. Bh3 {[%clk 00:03:10]}
{[%emt 00:02:03]} Bc8 {[%clk 00:13:51]} {[%emt 00:02:26]} 26. Nxg5 {[%clk
00:02:11]} {[%emt 00:01:28]} fxg5 {[%clk 00:14:09]} {[%emt 00:00:12]} 27. Qxf7+
{[%clk 00:02:33]} {[%emt 00:00:08]} Kxf7 {[%clk 00:14:32]} {[%emt 00:00:08]} 28.
Be6+ {[%clk 00:02:31]} {[%emt 00:00:32]} Rxe6 {[%clk 00:14:51]} {[%emt
00:00:10]} 29. dxe6+ {[%clk 00:02:57]} {[%emt 00:00:04]} Kxe6 {[%clk 00:15:13]}
{[%emt 00:00:08]} 30. Rxd3 {[%clk 00:03:19]} {[%emt 00:00:09]} Ne5 {[%clk
00:15:37]} {[%emt 00:00:06]} 31. Rdd1 {[%clk 00:02:21]} {[%emt 00:01:28]} Nxf3+
{[%clk 00:15:57]} {[%emt 00:00:10]} 32. Kf2 {[%clk 00:02:20]} {[%emt 00:00:31]}
Bb7 {[%clk 00:14:33]} {[%emt 00:01:54]} 33. Bxc5 {[%clk 00:01:24]} {[%emt
00:01:25]} Rh2+ {[%clk 00:13:53]} {[%emt 00:01:10]} 34. Ke3 {[%clk 00:01:49]}
{[%emt 00:00:06]} Ne5 {[%clk 00:14:18]} {[%emt 00:00:05]} 35. b4 {[%clk
00:01:21]} {[%emt 00:00:58]} Bd5 {[%clk 00:14:18]} {[%emt 00:00:30]} 36. Rxd5
{[%clk 00:01:18]} {[%emt 00:00:33]} Kxd5 {[%clk 00:14:23]} {[%emt 00:00:24]} 37.
Rd1+ {[%clk 00:01:23]} {[%emt 00:00:26]} Kc6 {[%clk 00:14:45]} {[%emt
00:00:07]} 38. a4 {[%clk 00:01:41]} {[%emt 00:00:12]} Rg2 {[%clk 00:14:47]}
{[%emt 00:00:28]} 39. Ke4 {[%clk 00:01:35]} {[%emt 00:00:37]} Nd7 {[%clk
00:14:58]} {[%emt 00:00:19]} 40. Rc1 {[%clk 00:01:13]} {[%emt 00:00:52]} Ra2
{[%clk 00:13:08]} {[%emt 00:02:19]} 41. b5+ {[%clk 00:01:13]} {[%emt 00:00:30]}
Kb7 {[%clk 00:13:34]} {[%emt 00:00:05]} 42. Bd4 {[%clk 00:01:21]} {[%emt
00:00:22]} Nf8 {[%clk 00:13:10]} {[%emt 00:00:53]} 43. Rc7+ {[%clk 00:01:04]}
{[%emt 00:00:47]} Kb8 {[%clk 00:13:36]} {[%emt 00:00:04]} 44. Re7 {[%clk
00:00:48]} {[%emt 00:00:46]} g4 {[%clk 00:11:38]} {[%emt 00:02:29]} 45. Re8+
{[%clk 00:01:00]} {[%emt 00:00:17]} Kb7 {[%clk 00:12:06]} {[%emt 00:00:02]} 46.
Rxf8 {[%clk 00:01:25]} {[%emt 00:00:06]} Re2+ {[%clk 00:12:29]} {[%emt
00:00:06]} 47. Be3 {[%clk 00:01:03]} {[%emt 00:00:52]} Rf2 {[%clk 00:11:52]}
{[%emt 00:01:07]} 48. Rxf2 {[%clk 00:01:16]} {[%emt 00:00:18]} 1-0

[Event "Kvibergspelen September 2019"]
[Site "Prioritet Serneke Arena, Krutvagen 2, Gothenburg, Sweden"]
[Date "2019.09.28"]
[Round "5.14"]
[White "Wengholm, Anders"]
[Black "Lyngsjo, Hakan"]
[Result "1-0"]
[TimeControl "15 minutes + 5 seconds per move from move one (Round 1 - 4) / 90 minutes + 30 seconds per move from move one (Round 5 - 8)"]
[WhiteFideId "1704818"]
[BlackFideId "1701649"]
[WhiteElo "2218"]
[BlackElo "2031"]

1. c4 {[%clk 01:30:41]} {[%emt 00:00:19]} g6 {[%clk 01:31:18]} {[%emt
00:00:12]} 2. e4 {[%clk 01:23:29]} {[%emt 00:07:41]} e5 {[%clk 01:30:50]}
{[%emt 00:00:58]} 3. Nc3 {[%clk 01:22:27]} {[%emt 00:01:32]} Nf6 {[%clk
01:26:48]} {[%emt 00:04:31]} 4. g3 {[%clk 01:10:48]} {[%emt 00:12:10]} Nc6
{[%clk 01:21:47]} {[%emt 00:05:31]} 5. Bg2 {[%clk 01:08:31]} {[%emt 00:02:47]}
d6 {[%clk 01:18:56]} {[%emt 00:03:20]} 6. Nge2 {[%clk 01:07:43]} {[%emt
00:01:19]} Bg4 {[%clk 01:10:25]} {[%emt 00:09:00]} 7. f3 {[%clk 01:07:21]}
{[%emt 00:00:52]} Be6 {[%clk 01:10:15]} {[%emt 00:00:40]} 8. Nd5 {[%clk
01:07:42]} {[%emt 00:00:09]} Nd4 {[%clk 01:04:23]} {[%emt 00:06:21]} 9. Nxd4
{[%clk 01:02:46]} {[%emt 00:05:27]} exd4 {[%clk 01:04:34]} {[%emt 00:00:18]} 10.
d3 {[%clk 01:00:58]} {[%emt 00:02:19]} c6 {[%clk 01:02:59]} {[%emt 00:02:04]}
11. Nf4 {[%clk 00:58:56]} {[%emt 00:02:33]} Qd7 {[%clk 00:50:37]} {[%emt
00:12:50]} 12. O-O {[%clk 00:55:44]} {[%emt 00:03:42]} Bg7 {[%clk 00:40:07]}
{[%emt 00:11:01]} 13. h3 {[%clk 00:46:03]} {[%emt 00:10:11]} h6 {[%clk
00:31:50]} {[%emt 00:08:47]} 14. Kh2 {[%clk 00:45:18]} {[%emt 00:01:15]} g5
{[%clk 00:31:20]} {[%emt 00:00:59]} 15. Ne2 {[%clk 00:44:32]} {[%emt 00:01:16]}
Nh5 {[%clk 00:19:42]} {[%emt 00:12:08]} 16. Ng1 {[%clk 00:41:00]} {[%emt
00:04:03]} f5 {[%clk 00:11:44]} {[%emt 00:08:28]} 17. f4 {[%clk 00:17:09]}
{[%emt 00:24:22]} Nf6 {[%clk 00:11:06]} {[%emt 00:01:07]} 18. exf5 {[%clk
00:15:37]} {[%emt 00:02:02]} Bxf5 {[%clk 00:11:14]} {[%emt 00:00:23]} 19. Qe2+
{[%clk 00:15:05]} {[%emt 00:01:01]} Kd8 {[%clk 00:10:59]} {[%emt 00:00:44]} 20.
fxg5 {[%clk 00:05:01]} {[%emt 00:10:35]} hxg5 {[%clk 00:10:58]} {[%emt
00:00:31]} 21. Bxg5 {[%clk 00:05:09]} {[%emt 00:00:23]} Kc7 {[%clk 00:10:51]}
{[%emt 00:00:36]} 22. Bxf6 {[%clk 00:05:29]} {[%emt 00:00:10]} Bxf6 {[%clk
00:11:12]} {[%emt 00:00:09]} 23. Qf3 {[%clk 00:05:48]} {[%emt 00:00:11]} Be5
{[%clk 00:02:08]} {[%emt 00:09:35]} 24. Qxf5 {[%clk 00:06:08]} {[%emt
00:00:09]} Qg7 {[%clk 00:02:24]} {[%emt 00:00:13]} 25. Qf7+ {[%clk 00:06:30]}
{[%emt 00:00:08]} 1-0